[Event "Early Titled Tuesday Blitz | February 8 2022"]
[White "Mladenovic, Stefan"]
[Black "Sarkar, Justin"]
[WhiteFideId "942227"]
[BlackFideId "2010011"]
[WhiteElo "2355"]
[BlackElo "2038"]
[Result "0-1"]
[Round "02"]
[TimeControl "180+1"]
[Date "2022.02.08"]
[WhiteClock "0:00:52"]
[BlackClock "0:00:02"]

1. d4 {[%clk 0:03:00]}  Nf6 {[%clk 0:02:57]} 2. Nf3 {[%clk 0:02:59]}  d5 {[%clk 0:02:55]} 3. c4 {[%clk 0:02:58]}  e6 {[%clk 0:02:55]} 4. Nc3 {[%clk 0:02:57]}  Be7 {[%clk 0:02:55]} 5. Bg5 {[%clk 0:02:57]}  Nbd7 {[%clk 0:02:53]} 6. cxd5 {[%clk 0:02:56]}  Nxd5 {[%clk 0:02:47]} 7. Bxe7 {[%clk 0:02:43]}  Qxe7 {[%clk 0:02:43]} 8. e4 {[%clk 0:02:43]}  Nxc3 {[%clk 0:02:36]} 9. bxc3 {[%clk 0:02:44]}  O-O {[%clk 0:02:31]} 10. Bd3 {[%clk 0:02:41]}  c5 {[%clk 0:01:33]} 11. O-O {[%clk 0:02:40]}  b6 {[%clk 0:01:27]} 12. Qe2 {[%clk 0:02:38]}  e5 {[%clk 0:01:18]} 13. d5 {[%clk 0:02:35]}  Nf6 {[%clk 0:01:15]} 14. Rfe1 {[%clk 0:02:32]}  Bg4 {[%clk 0:01:02]} 15. h3 {[%clk 0:02:32]}  Bxf3 {[%clk 0:01:01]} 16. Qxf3 {[%clk 0:02:33]}  Ne8 {[%clk 0:01:01]} 17. a4 {[%clk 0:02:32]}  Nd6 {[%clk 0:00:58]} 18. Bb5 {[%clk 0:02:29]}  f5 {[%clk 0:00:43]} 19. exf5 {[%clk 0:02:27]}  Rxf5 {[%clk 0:00:43]} 20. Qg3 {[%clk 0:02:24]}  Raf8 {[%clk 0:00:38]} 21. Re2 {[%clk 0:02:23]}  Rf4 {[%clk 0:00:30]} 22. Bc6 {[%clk 0:02:20]}  Qf6 {[%clk 0:00:18]} 23. a5 {[%clk 0:02:18]}  Ne4 {[%clk 0:00:12]} 24. Qe3 {[%clk 0:02:01]}  Nxf2 {[%clk 0:00:09]} 25. Qxe5 {[%clk 0:02:01]}  Nxh3+ {[%clk 0:00:07]} 26. gxh3 {[%clk 0:01:54]}  Rf1+ {[%clk 0:00:06]} 27. Kh2 {[%clk 0:01:25]}  Rf2+ {[%clk 0:00:06]} 28. Kg1 {[%clk 0:01:13]}  Qg6+ {[%clk 0:00:02]} 29. Qg3 {[%clk 0:00:51]}  Qxg3+ {[%clk 0:00:02]} 30. Kh1 {[%clk 0:00:52]}  Qh2# {[%clk 0:00:02]} 0-1


[Site "https://www.chess.com"]

[Event "Early Titled Tuesday Blitz | February 8 2022"]
[White "Mohammad Fahad, Rahman"]
[Black "Martinez Alcantara, Jose Eduardo"]
[WhiteFideId "10207791"]
[BlackFideId "3805662"]
[WhiteElo "2323"]
[BlackElo "2690"]
[Result "0-1"]
[Round "02"]
[TimeControl "180+1"]
[Date "2022.02.08"]
[WhiteClock "0:00:03"]
[BlackClock "0:00:57"]

1. d4 {[%clk 0:03:00]}  Nf6 {[%clk 0:02:58]} 2. c4 {[%clk 0:02:59]}  e6 {[%clk 0:02:59]} 3. Nf3 {[%clk 0:03:00]}  Bb4+ {[%clk 0:02:59]} 4. Bd2 {[%clk 0:02:59]}  Qe7 {[%clk 0:02:59]} 5. e3 {[%clk 0:02:55]}  b6 {[%clk 0:02:59]} 6. Bd3 {[%clk 0:02:53]}  Bb7 {[%clk 0:02:59]} 7. O-O {[%clk 0:02:52]}  O-O {[%clk 0:02:58]} 8. Nc3 {[%clk 0:02:31]}  Bxc3 {[%clk 0:02:48]} 9. Bxc3 {[%clk 0:02:32]}  Ne4 {[%clk 0:02:48]} 10. Be1 {[%clk 0:02:33]}  d6 {[%clk 0:02:45]} 11. Nd2 {[%clk 0:01:56]}  Nf6 {[%clk 0:02:44]} 12. Qc2 {[%clk 0:01:50]}  a5 {[%clk 0:02:36]} 13. Ne4 {[%clk 0:01:42]}  Nxe4 {[%clk 0:02:34]} 14. Bxe4 {[%clk 0:01:43]}  Bxe4 {[%clk 0:02:34]} 15. Qxe4 {[%clk 0:01:44]}  Nd7 {[%clk 0:02:35]} 16. Bc3 {[%clk 0:01:41]}  Nf6 {[%clk 0:02:33]} 17. Qc6 {[%clk 0:01:42]}  Rfd8 {[%clk 0:02:27]} 18. Rad1 {[%clk 0:01:40]}  h6 {[%clk 0:02:15]} 19. Rfe1 {[%clk 0:01:36]}  Qd7 {[%clk 0:02:14]} 20. Qf3 {[%clk 0:01:36]}  d5 {[%clk 0:02:13]} 21. cxd5 {[%clk 0:01:18]}  exd5 {[%clk 0:02:14]} 22. Rc1 {[%clk 0:01:16]}  Re8 {[%clk 0:02:11]} 23. Rc2 {[%clk 0:01:12]}  Re6 {[%clk 0:02:07]} 24. Rec1 {[%clk 0:01:12]}  c6 {[%clk 0:02:08]} 25. Be1 {[%clk 0:01:05]}  Ne4 {[%clk 0:02:08]} 26. Qe2 {[%clk 0:01:00]}  Qb7 {[%clk 0:01:49]} 27. b3 {[%clk 0:00:59]}  Rae8 {[%clk 0:01:47]} 28. f3 {[%clk 0:00:41]}  Nd6 {[%clk 0:01:40]} 29. Bf2 {[%clk 0:00:22]}  Nf5 {[%clk 0:01:39]} 30. Qd2 {[%clk 0:00:17]}  Nxe3 {[%clk 0:01:31]} 31. Bxe3 {[%clk 0:00:18]}  Rxe3 {[%clk 0:01:32]} 32. Rxc6 {[%clk 0:00:19]}  Qe7 {[%clk 0:01:28]} 33. Qf2 {[%clk 0:00:15]}  Re2 {[%clk 0:01:27]} 34. Qg3 {[%clk 0:00:15]}  Qe3+ {[%clk 0:01:27]} 35. Kf1 {[%clk 0:00:14]}  Rxa2 {[%clk 0:01:20]} 36. Rc8 {[%clk 0:00:13]}  Rxc8 {[%clk 0:01:14]} 37. Rxc8+ {[%clk 0:00:13]}  Kh7 {[%clk 0:01:15]} 38. Qe1 {[%clk 0:00:12]}  Qd3+ {[%clk 0:01:13]} 39. Kg1 {[%clk 0:00:12]}  Qxd4+ {[%clk 0:01:13]} 40. Kh1 {[%clk 0:00:13]}  Ra1 {[%clk 0:01:13]} 41. Rc1 {[%clk 0:00:13]}  Rxc1 {[%clk 0:01:13]} 42. Qxc1 {[%clk 0:00:14]}  Qd3 {[%clk 0:01:11]} 43. h4 {[%clk 0:00:10]}  d4 {[%clk 0:01:08]} 44. Qf4 {[%clk 0:00:09]}  Qxb3 {[%clk 0:00:58]} 45. h5 {[%clk 0:00:08]}  Qd5 {[%clk 0:00:56]} 46. g4 {[%clk 0:00:03]}  d3 {[%clk 0:00:56]} 47. Qd2 {[%clk 0:00:03]}  Qxf3+ {[%clk 0:00:56]} 48. Kh2 {[%clk 0:00:03]}  Qe2+ {[%clk 0:00:57]} 49. Qxe2 {[%clk 0:00:03]}  dxe2 {[%clk 0:00:57]} 0-1


[Site "https://www.chess.com"]

[Event "Early Titled Tuesday Blitz | February 8 2022"]
[White "Mohammed, Dilshad"]
[Black "Hasangatin, Ramil"]
[WhiteFideId "5050421"]
[BlackFideId "4122160"]
[WhiteElo "2153"]
[BlackElo "2375"]
[Result "0-1"]
[Round "02"]
[TimeControl "180+1"]
[Date "2022.02.08"]
[WhiteClock "0:00:07"]
[BlackClock "0:01:08"]

1. Nf3 {[%clk 0:02:34]}  d6 {[%clk 0:02:55]} 2. d4 {[%clk 0:02:34]}  Nf6 {[%clk 0:02:53]} 3. c4 {[%clk 0:02:33]}  g6 {[%clk 0:02:53]} 4. Nc3 {[%clk 0:02:34]}  Bg7 {[%clk 0:02:54]} 5. e4 {[%clk 0:02:34]}  c5 {[%clk 0:02:53]} 6. Be2 {[%clk 0:02:35]}  cxd4 {[%clk 0:02:53]} 7. Nxd4 {[%clk 0:02:36]}  Nc6 {[%clk 0:02:53]} 8. O-O {[%clk 0:02:35]}  O-O {[%clk 0:02:53]} 9. Be3 {[%clk 0:02:35]}  Bd7 {[%clk 0:02:52]} 10. Rc1 {[%clk 0:02:28]}  Nxd4 {[%clk 0:02:53]} 11. Bxd4 {[%clk 0:02:28]}  Bc6 {[%clk 0:02:54]} 12. f3 {[%clk 0:02:27]}  a5 {[%clk 0:02:54]} 13. Kh1 {[%clk 0:02:25]}  Nd7 {[%clk 0:02:54]} 14. Bg1 {[%clk 0:02:23]}  a4 {[%clk 0:02:54]} 15. a3 {[%clk 0:02:22]}  Nc5 {[%clk 0:02:53]} 16. Qc2 {[%clk 0:02:10]}  Qa5 {[%clk 0:02:53]} 17. Rcd1 {[%clk 0:02:10]}  Rfc8 {[%clk 0:02:49]} 18. Bd4 {[%clk 0:02:01]}  Bxd4 {[%clk 0:02:39]} 19. Rxd4 {[%clk 0:02:02]}  Ne6 {[%clk 0:02:40]} 20. Rdd1 {[%clk 0:01:58]}  b5 {[%clk 0:02:40]} 21. cxb5 {[%clk 0:01:47]}  Bxb5 {[%clk 0:02:40]} 22. Qd2 {[%clk 0:01:45]}  Bxe2 {[%clk 0:02:35]} 23. Qxe2 {[%clk 0:01:38]}  Qa6 {[%clk 0:02:35]} 24. Qe3 {[%clk 0:01:34]}  Qb7 {[%clk 0:02:35]} 25. Nd5 {[%clk 0:01:32]}  Re8 {[%clk 0:02:22]} 26. Rf2 {[%clk 0:01:32]}  Nc7 {[%clk 0:02:22]} 27. Nc3 {[%clk 0:01:26]}  Na6 {[%clk 0:02:18]} 28. f4 {[%clk 0:01:25]}  Nc5 {[%clk 0:02:18]} 29. f5 {[%clk 0:01:24]}  Nd7 {[%clk 0:02:13]} 30. fxg6 {[%clk 0:01:21]}  hxg6 {[%clk 0:02:12]} 31. Rdf1 {[%clk 0:01:22]}  Nf6 {[%clk 0:02:12]} 32. h3 {[%clk 0:01:09]}  Kg7 {[%clk 0:02:09]} 33. Qd4 {[%clk 0:01:09]}  Ra5 {[%clk 0:02:03]} 34. Rxf6 {[%clk 0:01:06]}  exf6 {[%clk 0:02:02]} 35. Qxf6+ {[%clk 0:01:07]}  Kg8 {[%clk 0:02:02]} 36. Nd5 {[%clk 0:01:06]}  Rxd5 {[%clk 0:01:55]} 37. exd5 {[%clk 0:01:07]}  Qxd5 {[%clk 0:01:55]} 38. Qf4 {[%clk 0:01:03]}  Re2 {[%clk 0:01:53]} 39. Rf2 {[%clk 0:01:01]}  Rxf2 {[%clk 0:01:41]} 40. Qxf2 {[%clk 0:01:02]}  Qe5 {[%clk 0:01:41]} 41. Qc2 {[%clk 0:01:00]}  d5 {[%clk 0:01:37]} 42. Qxa4 {[%clk 0:00:57]}  d4 {[%clk 0:01:38]} 43. Qa8+ {[%clk 0:00:54]}  Kg7 {[%clk 0:01:38]} 44. Qf3 {[%clk 0:00:54]}  Qe1+ {[%clk 0:01:32]} 45. Kh2 {[%clk 0:00:53]}  Qd2 {[%clk 0:01:32]} 46. b4 {[%clk 0:00:46]}  d3 {[%clk 0:01:32]} 47. Qe4 {[%clk 0:00:46]}  Qe2 {[%clk 0:01:30]} 48. Qd4+ {[%clk 0:00:45]}  f6 {[%clk 0:01:22]} 49. Qd7+ {[%clk 0:00:45]}  Kh6 {[%clk 0:01:22]} 50. Qd8 {[%clk 0:00:38]}  d2 {[%clk 0:01:22]} 51. Qh8+ {[%clk 0:00:36]}  Kg5 {[%clk 0:01:21]} 52. h4+ {[%clk 0:00:36]}  Kf5 {[%clk 0:01:15]} 53. Qc8+ {[%clk 0:00:36]}  Ke4 {[%clk 0:01:15]} 54. Qe6+ {[%clk 0:00:31]}  Kd3 {[%clk 0:01:14]} 55. Qa6+ {[%clk 0:00:30]}  Ke3 {[%clk 0:01:14]} 56. Qe6+ {[%clk 0:00:31]}  Kf2 {[%clk 0:01:14]} 57. Qb6+ {[%clk 0:00:25]}  Qe3 {[%clk 0:01:08]} 58. Qxf6+ {[%clk 0:00:23]}  Ke1 {[%clk 0:01:09]} 59. Qf3 {[%clk 0:00:07]}  Qxf3 {[%clk 0:01:08]} 60. gxf3 {[%clk 0:00:07]}  d1=Q {[%clk 0:01:08]} 0-1


[Site "https://www.chess.com"]

[Event "Early Titled Tuesday Blitz | February 8 2022"]
[White "Moiseenko, Alexander"]
[Black "Al Mukhaini, Shima"]
[WhiteFideId "14102560"]
[BlackFideId "22005854"]
[WhiteElo "2577"]
[BlackElo "2387"]
[Result "1-0"]
[Round "02"]
[TimeControl "180+1"]
[Date "2022.02.08"]
[WhiteClock "0:01:04"]
[BlackClock "0:01:38"]

1. d4 {[%clk 0:03:00]}  Nf6 {[%clk 0:02:57]} 2. c4 {[%clk 0:03:00]}  Nc6 {[%clk 0:02:57]} 3. Nf3 {[%clk 0:02:57]}  e6 {[%clk 0:02:57]} 4. g3 {[%clk 0:02:53]}  Bb4+ {[%clk 0:02:56]} 5. Bd2 {[%clk 0:02:54]}  Bxd2+ {[%clk 0:02:56]} 6. Qxd2 {[%clk 0:02:51]}  d6 {[%clk 0:02:56]} 7. Nc3 {[%clk 0:02:49]}  O-O {[%clk 0:02:56]} 8. Bg2 {[%clk 0:02:46]}  Re8 {[%clk 0:02:55]} 9. O-O {[%clk 0:02:44]}  e5 {[%clk 0:02:53]} 10. d5 {[%clk 0:02:35]}  Nb8 {[%clk 0:02:48]} 11. e4 {[%clk 0:02:33]}  a5 {[%clk 0:02:42]} 12. Ne1 {[%clk 0:02:28]}  Na6 {[%clk 0:02:41]} 13. Nd3 {[%clk 0:02:28]}  b6 {[%clk 0:02:40]} 14. f4 {[%clk 0:02:18]}  exf4 {[%clk 0:02:33]} 15. gxf4 {[%clk 0:02:17]}  Nc5 {[%clk 0:02:32]} 16. Rae1 {[%clk 0:02:12]}  Nxd3 {[%clk 0:02:30]} 17. Qxd3 {[%clk 0:02:12]}  Nd7 {[%clk 0:02:29]} 18. Kh1 {[%clk 0:02:04]}  f6 {[%clk 0:02:28]} 19. Nb5 {[%clk 0:01:58]}  Nc5 {[%clk 0:02:23]} 20. Qc2 {[%clk 0:01:56]}  Bd7 {[%clk 0:02:23]} 21. Nd4 {[%clk 0:01:56]}  Qe7 {[%clk 0:02:23]} 22. f5 {[%clk 0:01:53]}  Rac8 {[%clk 0:02:07]} 23. Ne6 {[%clk 0:01:51]}  Kh8 {[%clk 0:02:05]} 24. Bf3 {[%clk 0:01:43]}  Rg8 {[%clk 0:02:01]} 25. Rg1 {[%clk 0:01:38]}  Be8 {[%clk 0:01:57]} 26. Rg3 {[%clk 0:01:37]}  Nd7 {[%clk 0:01:55]} 27. Reg1 {[%clk 0:01:34]}  g5 {[%clk 0:01:52]} 28. h4 {[%clk 0:01:24]}  h6 {[%clk 0:01:44]} 29. Rh3 {[%clk 0:01:08]}  Kh7 {[%clk 0:01:38]} 30. hxg5 {[%clk 0:01:04]}  fxg5 {[%clk 0:01:38]} 31. Rxh6+ {[%clk 0:01:04]} 1-0


[Site "https://www.chess.com"]

[Event "Early Titled Tuesday Blitz | February 8 2022"]
[White "Nadeev, Sergey"]
[Black "Johnson, Ben"]
[WhiteFideId "4180038"]
[BlackFideId "2010917"]
[WhiteElo "2369"]
[BlackElo "2156"]
[Result "1-0"]
[Round "02"]
[TimeControl "180+1"]
[Date "2022.02.08"]
[WhiteClock "0:01:18"]
[BlackClock "0:00:08"]

1. e4 {[%clk 0:03:00]}  c5 {[%clk 0:02:59]} 2. Nf3 {[%clk 0:03:00]}  Nc6 {[%clk 0:03:00]} 3. d4 {[%clk 0:03:00]}  cxd4 {[%clk 0:03:00]} 4. Nxd4 {[%clk 0:03:01]}  Nf6 {[%clk 0:03:01]} 5. Nc3 {[%clk 0:03:01]}  e5 {[%clk 0:03:01]} 6. Ndb5 {[%clk 0:03:01]}  d6 {[%clk 0:03:01]} 7. Bg5 {[%clk 0:03:02]}  a6 {[%clk 0:03:01]} 8. Na3 {[%clk 0:03:02]}  b5 {[%clk 0:03:02]} 9. Nd5 {[%clk 0:03:02]}  Be7 {[%clk 0:03:02]} 10. Bxf6 {[%clk 0:03:03]}  Bxf6 {[%clk 0:03:03]} 11. c3 {[%clk 0:03:03]}  O-O {[%clk 0:03:03]} 12. Nc2 {[%clk 0:03:04]}  Rb8 {[%clk 0:03:03]} 13. a4 {[%clk 0:03:01]}  bxa4 {[%clk 0:03:03]} 14. Ncb4 {[%clk 0:03:01]}  Nxb4 {[%clk 0:03:00]} 15. cxb4 {[%clk 0:03:02]}  Bb7 {[%clk 0:02:52]} 16. Rxa4 {[%clk 0:02:58]}  Bc6 {[%clk 0:01:43]} 17. Rxa6 {[%clk 0:02:58]}  Bxd5 {[%clk 0:01:43]} 18. Qxd5 {[%clk 0:02:58]}  Rxb4 {[%clk 0:01:42]} 19. Bc4 {[%clk 0:02:31]}  Qc8 {[%clk 0:01:22]} 20. b3 {[%clk 0:02:15]}  Qg4 {[%clk 0:00:50]} 21. O-O {[%clk 0:02:13]}  h5 {[%clk 0:00:44]} 22. Rxd6 {[%clk 0:02:12]}  h4 {[%clk 0:00:39]} 23. h3 {[%clk 0:02:12]}  Qg6 {[%clk 0:00:38]} 24. Ra1 {[%clk 0:02:06]}  Rbb8 {[%clk 0:00:25]} 25. Ra7 {[%clk 0:02:03]}  Rbe8 {[%clk 0:00:22]} 26. Rdd7 {[%clk 0:01:56]}  Qg5 {[%clk 0:00:19]} 27. Rxf7 {[%clk 0:01:50]}  Qc1+ {[%clk 0:00:18]} 28. Bf1 {[%clk 0:01:49]}  Kh7 {[%clk 0:00:15]} 29. Qd7 {[%clk 0:01:33]}  Rg8 {[%clk 0:00:09]} 30. Qf5+ {[%clk 0:01:19]}  Kh6 {[%clk 0:00:09]} 31. Rxf6+ {[%clk 0:01:19]}  gxf6 {[%clk 0:00:08]} 32. Rh7# {[%clk 0:01:18]} 1-0


[Site "https://www.chess.com"]

[Event "Early Titled Tuesday Blitz | February 8 2022"]
[White "Navalgund, Niranjan"]
[Black "Araujo Filho, Luiz Antonio Coel"]
[WhiteFideId "5030854"]
[BlackFideId "2130661"]
[WhiteElo "2290"]
[BlackElo "2210"]
[Result "0-1"]
[Round "02"]
[TimeControl "180+1"]
[Date "2022.02.08"]
[WhiteClock "0:00:11"]
[BlackClock "0:00:06"]

1. e4 {[%clk 0:02:47]}  c6 {[%clk 0:02:59]} 2. Nc3 {[%clk 0:02:47]}  d5 {[%clk 0:02:59]} 3. Qf3 {[%clk 0:02:48]}  dxe4 {[%clk 0:02:59]} 4. Nxe4 {[%clk 0:02:47]}  Nf6 {[%clk 0:02:59]} 5. Bc4 {[%clk 0:02:48]}  e6 {[%clk 0:02:57]} 6. d3 {[%clk 0:02:47]}  Nbd7 {[%clk 0:02:56]} 7. Bf4 {[%clk 0:02:46]}  Nb6 {[%clk 0:02:53]} 8. Bb3 {[%clk 0:02:46]}  Be7 {[%clk 0:02:53]} 9. O-O-O {[%clk 0:02:44]}  O-O {[%clk 0:02:52]} 10. g4 {[%clk 0:02:39]}  a5 {[%clk 0:02:52]} 11. a3 {[%clk 0:02:36]}  a4 {[%clk 0:02:50]} 12. Ba2 {[%clk 0:02:36]}  Nbd5 {[%clk 0:02:42]} 13. Bd2 {[%clk 0:02:32]}  b5 {[%clk 0:02:40]} 14. g5 {[%clk 0:02:12]}  Ne8 {[%clk 0:02:39]} 15. h4 {[%clk 0:02:11]}  b4 {[%clk 0:02:34]} 16. axb4 {[%clk 0:02:04]}  Nxb4 {[%clk 0:02:26]} 17. Bxb4 {[%clk 0:02:02]}  Bxb4 {[%clk 0:02:26]} 18. Ne2 {[%clk 0:02:02]}  a3 {[%clk 0:02:25]} 19. b3 {[%clk 0:01:59]}  Bb7 {[%clk 0:02:15]} 20. Rhg1 {[%clk 0:00:25]}  Be7 {[%clk 0:01:21]} 21. h5 {[%clk 0:00:18]}  c5 {[%clk 0:01:15]} 22. h6 {[%clk 0:00:16]}  g6 {[%clk 0:01:14]} 23. Kb1 {[%clk 0:00:13]}  Nd6 {[%clk 0:00:58]} 24. Qe3 {[%clk 0:00:12]}  Nf5 {[%clk 0:00:56]} 25. Qd2 {[%clk 0:00:11]}  Qd7 {[%clk 0:00:37]} 26. N2g3 {[%clk 0:00:10]}  Rfd8 {[%clk 0:00:33]} 27. Nxf5 {[%clk 0:00:09]}  exf5 {[%clk 0:00:31]} 28. Nf6+ {[%clk 0:00:07]}  Bxf6 {[%clk 0:00:31]} 29. gxf6 {[%clk 0:00:08]}  Qd4 {[%clk 0:00:31]} 30. c3 {[%clk 0:00:08]}  Qxf6 {[%clk 0:00:32]} 31. Qe3 {[%clk 0:00:08]}  Qxc3 {[%clk 0:00:29]} 32. Qc1 {[%clk 0:00:08]}  Qd4 {[%clk 0:00:22]} 33. Qc2 {[%clk 0:00:08]}  Ba6 {[%clk 0:00:17]} 34. Kc1 {[%clk 0:00:06]}  Bxd3 {[%clk 0:00:13]} 35. Rxd3 {[%clk 0:00:06]}  Qxd3 {[%clk 0:00:13]} 36. Qxd3 {[%clk 0:00:04]}  Rxd3 {[%clk 0:00:12]} 37. Kc2 {[%clk 0:00:04]}  Rad8 {[%clk 0:00:11]} 38. Bb1 {[%clk 0:00:02]}  Rd2+ {[%clk 0:00:11]} 39. Kc3 {[%clk 0:00:02]}  a2 {[%clk 0:00:09]} 40. Kc4 {[%clk 0:00:03]}  axb1=Q {[%clk 0:00:09]} 41. Rxb1 {[%clk 0:00:04]}  Rc2+ {[%clk 0:00:08]} 42. Kb5 {[%clk 0:00:04]}  Rb8+ {[%clk 0:00:08]} 43. Kc6 {[%clk 0:00:05]}  c4 {[%clk 0:00:08]} 44. Rd1 {[%clk 0:00:06]}  cxb3+ {[%clk 0:00:08]} 45. Kd7 {[%clk 0:00:07]}  b2 {[%clk 0:00:07]} 46. Ke7 {[%clk 0:00:08]}  b1=Q {[%clk 0:00:07]} 47. Rd8+ {[%clk 0:00:08]}  Rxd8 {[%clk 0:00:07]} 48. f4 {[%clk 0:00:09]}  Qe1+ {[%clk 0:00:06]} 49. Kf6 {[%clk 0:00:10]}  Rc6+ {[%clk 0:00:06]} 50. Kg5 {[%clk 0:00:11]}  Qg3# {[%clk 0:00:06]} 0-1


[Site "https://www.chess.com"]

[Event "Early Titled Tuesday Blitz | February 8 2022"]
[White "Niyazgulova, Marina"]
[Black "Maze, Sebastien"]
[WhiteFideId "24142573"]
[BlackFideId "613762"]
[WhiteElo "2075"]
[BlackElo "2462"]
[Result "1/2-1/2"]
[Round "02"]
[TimeControl "180+1"]
[Date "2022.02.08"]
[WhiteClock "0:00:07"]
[BlackClock "0:01:21"]

1. d4 {[%clk 0:03:00]}  Nf6 {[%clk 0:02:59]} 2. c4 {[%clk 0:03:00]}  g6 {[%clk 0:02:59]} 3. Nc3 {[%clk 0:02:59]}  Bg7 {[%clk 0:03:00]} 4. e4 {[%clk 0:02:59]}  d6 {[%clk 0:02:57]} 5. Be2 {[%clk 0:02:59]}  Na6 {[%clk 0:02:54]} 6. Nf3 {[%clk 0:02:51]}  O-O {[%clk 0:02:54]} 7. O-O {[%clk 0:02:49]}  e5 {[%clk 0:02:50]} 8. Be3 {[%clk 0:02:38]}  c6 {[%clk 0:02:48]} 9. h3 {[%clk 0:02:17]}  exd4 {[%clk 0:02:42]} 10. Nxd4 {[%clk 0:02:15]}  Re8 {[%clk 0:02:42]} 11. f3 {[%clk 0:01:32]}  d5 {[%clk 0:02:37]} 12. cxd5 {[%clk 0:01:31]}  cxd5 {[%clk 0:02:22]} 13. Bb5 {[%clk 0:01:21]}  Bd7 {[%clk 0:02:17]} 14. Bxa6 {[%clk 0:00:54]}  bxa6 {[%clk 0:02:13]} 15. Bg5 {[%clk 0:00:54]}  dxe4 {[%clk 0:02:09]} 16. Nxe4 {[%clk 0:00:46]}  Qb6 {[%clk 0:02:09]} 17. Nxf6+ {[%clk 0:00:45]}  Bxf6 {[%clk 0:02:10]} 18. Bxf6 {[%clk 0:00:45]}  Qxf6 {[%clk 0:02:10]} 19. Nb3 {[%clk 0:00:27]}  Rad8 {[%clk 0:02:09]} 20. Qd4 {[%clk 0:00:16]}  Qg5 {[%clk 0:02:04]} 21. Qc3 {[%clk 0:00:13]}  Bxh3 {[%clk 0:02:03]} 22. Rf2 {[%clk 0:00:10]}  Be6 {[%clk 0:01:58]} 23. Nd4 {[%clk 0:00:09]}  Qf6 {[%clk 0:01:54]} 24. Nxe6 {[%clk 0:00:09]}  Qxc3 {[%clk 0:01:52]} 25. bxc3 {[%clk 0:00:08]}  Rxe6 {[%clk 0:01:53]} 26. Rc2 {[%clk 0:00:06]}  Rc6 {[%clk 0:01:49]} 27. c4 {[%clk 0:00:06]}  Kf8 {[%clk 0:01:49]} 28. Rac1 {[%clk 0:00:06]}  Rc5 {[%clk 0:01:45]} 29. Kf2 {[%clk 0:00:06]}  Ke7 {[%clk 0:01:44]} 30. Ke3 {[%clk 0:00:06]}  Rd6 {[%clk 0:01:44]} 31. Rc3 {[%clk 0:00:07]}  Kd7 {[%clk 0:01:44]} 32. g4 {[%clk 0:00:06]}  h5 {[%clk 0:01:43]} 33. gxh5 {[%clk 0:00:06]}  Rxh5 {[%clk 0:01:43]} 34. c5 {[%clk 0:00:05]}  Re6+ {[%clk 0:01:42]} 35. Kf2 {[%clk 0:00:05]}  Rh2+ {[%clk 0:01:36]} 36. Kg3 {[%clk 0:00:05]}  Rh5 {[%clk 0:01:35]} 37. Rb3 {[%clk 0:00:04]}  Kc7 {[%clk 0:01:34]} 38. Rbc3 {[%clk 0:00:04]}  Ree5 {[%clk 0:01:34]} 39. c6 {[%clk 0:00:03]}  Re6 {[%clk 0:01:32]} 40. Ra3 {[%clk 0:00:03]}  Rxc6 {[%clk 0:01:31]} 41. Rxc6+ {[%clk 0:00:03]}  Kxc6 {[%clk 0:01:31]} 42. Rxa6+ {[%clk 0:00:03]}  Kb7 {[%clk 0:01:31]} 43. Rf6 {[%clk 0:00:03]}  Rh7 {[%clk 0:01:31]} 44. Kg4 {[%clk 0:00:04]}  a5 {[%clk 0:01:29]} 45. f4 {[%clk 0:00:04]}  a4 {[%clk 0:01:29]} 46. a3 {[%clk 0:00:05]}  Kc7 {[%clk 0:01:28]} 47. Ra6 {[%clk 0:00:04]}  Kd7 {[%clk 0:01:28]} 48. Rxa4 {[%clk 0:00:05]}  Rh1 {[%clk 0:01:28]} 49. Ra5 {[%clk 0:00:05]}  Ke6 {[%clk 0:01:23]} 50. Ra6+ {[%clk 0:00:05]}  Ke7 {[%clk 0:01:23]} 51. Ra7+ {[%clk 0:00:05]}  Kf6 {[%clk 0:01:23]} 52. Ra6+ {[%clk 0:00:05]}  Kg7 {[%clk 0:01:22]} 53. Ra7 {[%clk 0:00:06]}  Rb1 {[%clk 0:01:21]} 54. a4 {[%clk 0:00:06]}  Rb4 {[%clk 0:01:20]} 55. a5 {[%clk 0:00:06]}  Ra4 {[%clk 0:01:20]} 56. Ra6 {[%clk 0:00:06]}  f6 {[%clk 0:01:20]} 57. Ra7+ {[%clk 0:00:06]}  Kh6 {[%clk 0:01:20]} 58. Kg3 {[%clk 0:00:07]}  f5 {[%clk 0:01:18]} 59. Ra8 {[%clk 0:00:07]}  Ra3+ {[%clk 0:01:19]} 60. Kg2 {[%clk 0:00:07]}  Kh5 {[%clk 0:01:19]} 61. Rh8+ {[%clk 0:00:05]}  Kg4 {[%clk 0:01:18]} 62. Rg8 {[%clk 0:00:06]}  Ra2+ {[%clk 0:01:18]} 63. Kg1 {[%clk 0:00:06]}  Rxa5 {[%clk 0:01:17]} 64. Rxg6+ {[%clk 0:00:06]}  Kxf4 {[%clk 0:01:17]} 65. Rb6 {[%clk 0:00:06]}  Ra3 {[%clk 0:01:17]} 66. Kf2 {[%clk 0:00:04]}  Ra2+ {[%clk 0:01:16]} 67. Kf1 {[%clk 0:00:04]}  Kg4 {[%clk 0:01:16]} 68. Rb3 {[%clk 0:00:05]}  f4 {[%clk 0:01:17]} 69. Rc3 {[%clk 0:00:05]}  Ra5 {[%clk 0:01:17]} 70. Rb3 {[%clk 0:00:05]}  Re5 {[%clk 0:01:17]} 71. Rc3 {[%clk 0:00:05]}  Re3 {[%clk 0:01:17]} 72. Rxe3 {[%clk 0:00:05]}  fxe3 {[%clk 0:01:18]} 73. Ke2 {[%clk 0:00:06]}  Kf4 {[%clk 0:01:19]} 74. Ke1 {[%clk 0:00:07]}  Kf3 {[%clk 0:01:19]} 75. Kf1 {[%clk 0:00:07]}  e2+ {[%clk 0:01:20]} 76. Ke1 {[%clk 0:00:07]}  Ke3 {[%clk 0:01:21]} 1/2-1/2


[Site "https://www.chess.com"]

[Event "Early Titled Tuesday Blitz | February 8 2022"]
[White "Omariev, Maksim"]
[Black "Szpar, Milosz"]
[WhiteFideId "4193423"]
[BlackFideId "1184989"]
[WhiteElo "2515"]
[BlackElo "2447"]
[Result "0-1"]
[Round "02"]
[TimeControl "180+1"]
[Date "2022.02.08"]
[WhiteClock "0:00:02"]
[BlackClock "0:00:36"]

1. e4 {[%clk 0:03:00]}  c5 {[%clk 0:02:59]} 2. Nf3 {[%clk 0:03:00]}  d6 {[%clk 0:02:59]} 3. d4 {[%clk 0:03:00]}  cxd4 {[%clk 0:02:59]} 4. Nxd4 {[%clk 0:03:01]}  Nf6 {[%clk 0:02:59]} 5. Nc3 {[%clk 0:03:01]}  Nc6 {[%clk 0:03:00]} 6. Bg5 {[%clk 0:03:00]}  e6 {[%clk 0:03:00]} 7. Qd2 {[%clk 0:03:00]}  a6 {[%clk 0:02:59]} 8. f3 {[%clk 0:02:58]}  Be7 {[%clk 0:02:53]} 9. O-O-O {[%clk 0:02:55]}  Nxd4 {[%clk 0:02:44]} 10. Qxd4 {[%clk 0:02:55]}  O-O {[%clk 0:02:38]} 11. h4 {[%clk 0:02:53]}  Qa5 {[%clk 0:02:29]} 12. Kb1 {[%clk 0:02:49]}  b5 {[%clk 0:02:28]} 13. Bd3 {[%clk 0:02:33]}  b4 {[%clk 0:02:07]} 14. Ne2 {[%clk 0:02:32]}  e5 {[%clk 0:02:08]} 15. Qe3 {[%clk 0:02:24]}  Be6 {[%clk 0:02:07]} 16. Nc1 {[%clk 0:02:22]}  Rfc8 {[%clk 0:02:05]} 17. g4 {[%clk 0:01:25]}  Qc5 {[%clk 0:01:30]} 18. Qe1 {[%clk 0:01:17]}  a5 {[%clk 0:01:29]} 19. h5 {[%clk 0:01:12]}  a4 {[%clk 0:01:20]} 20. Be3 {[%clk 0:01:12]}  Qc6 {[%clk 0:00:59]} 21. g5 {[%clk 0:01:00]}  b3 {[%clk 0:00:57]} 22. cxb3 {[%clk 0:00:55]}  axb3 {[%clk 0:00:56]} 23. gxf6 {[%clk 0:00:52]}  Bxf6 {[%clk 0:00:39]} 24. Nxb3 {[%clk 0:00:25]}  Qa4 {[%clk 0:00:36]} 25. a3 {[%clk 0:00:02]}  Qxb3 {[%clk 0:00:36]} 0-1


[Site "https://www.chess.com"]